[Event "FIDE Grand Swiss 2023"]
[Site "Villa Marina, Douglas, Isle of Man"]
[Date "2023.11.04"]
[Round "10.29"]
[White "Murzin, Volodar"]
[Black "Bluebaum, Matthias"]
[Result "1/2-1/2"]
[WhiteElo "2633"]
[BlackElo "2668"]
[EventDate "2023.10.25"]
[ECO "D38"]
[PlyCount "83"]
[BlackFideId "24651516"]
[TimeControl "40/100 + 20/50 + 15 + 30s/move"]
[WhiteFideId "44155573"]

1.d4 {[%clk 01:40:57][%emt 00:00:02]} 1...Nf6 {[%clk 01:40:44][%emt 00:00:16]} 
2.c4 {[%clk 01:41:22][%emt 00:00:06]} 2...e6 {[%clk 01:41:09][%emt 00:00:04]} 
3.Nf3 {[%clk 01:41:46][%emt 00:00:05]} 3...d5 {[%clk 01:41:25][%emt 00:00:15]} 
4.Nc3 {[%clk 01:42:10][%emt 00:00:06]} 4...Bb4 {[%clk 01:40:40][%emt 00:01:15]} 
5.Bg5 {[%clk 01:42:33][%emt 00:00:07]} 5...O-O {[%clk 01:40:40][%emt 00:00:30]} 
6.e3 {[%clk 01:36:45][%emt 00:06:18]} 6...c5 {[%clk 01:40:52][%emt 00:00:18]} 
7.cxd5 {[%clk 01:32:46][%emt 00:04:30]} 7...exd5 {[%clk 01:40:48][%emt
00:00:34]} 8.Be2 {[%clk 01:30:04][%emt 00:03:11]} 8...h6 {[%clk 01:40:23][%emt
00:00:54]} 9.Bxf6 {[%clk 01:27:51][%emt 00:02:43]} 9...Qxf6 {[%clk
01:40:21][%emt 00:00:33]} 10.O-O {[%clk 01:28:04][%emt 00:00:17]} 10...Bxc3 
{[%clk 01:40:15][%emt 00:00:37]} 11.bxc3 {[%clk 01:28:32][%emt 00:00:02]} 
11...Be6 {[%clk 01:40:39][%emt 00:00:06]} 12.Ne5 {[%clk 01:24:22][%emt
00:04:40]} 12...Qe7 {[%clk 01:39:45][%emt 00:01:24]} 13.Rb1 {[%clk
01:15:18][%emt 00:09:34]} 13...b6 {[%clk 01:40:03][%emt 00:00:12]} 14.Bf3 
{[%clk 01:10:40][%emt 00:05:08]} 14...Nd7 {[%clk 01:40:14][%emt 00:00:19]} 
15.c4 {[%clk 00:51:27][%emt 00:19:43]} 15...Nxe5 {[%clk 01:25:16][%emt
00:15:28]} 16.dxe5 {[%clk 00:51:37][%emt 00:00:19]} 16...Bf5 {[%clk
01:07:29][%emt 00:18:17]} 17.Rc1 {[%clk 00:38:04][%emt 00:14:03]} 17...Be4 
{[%clk 01:04:32][%emt 00:03:27]} 18.Bxe4 {[%clk 00:37:11][%emt 00:01:23]} 
18...dxe4 {[%clk 01:04:52][%emt 00:00:10]} 19.Qd5 {[%clk 00:37:38][%emt
00:00:04]} 19...Rfe8 {[%clk 01:03:15][%emt 00:02:06]} 20.Qxe4 {[%clk
00:37:50][%emt 00:00:18]} 20...Qxe5 {[%clk 01:03:36][%emt 00:00:09]} 21.Qxe5 
{[%clk 00:37:14][%emt 00:01:06]} 21...Rxe5 {[%clk 01:04:04][%emt 00:00:02]} 
22.Rfd1 {[%clk 00:37:36][%emt 00:00:08]} 22...a6 {[%clk 01:02:03][%emt
00:02:31]} 23.a4 {[%clk 00:33:16][%emt 00:04:50]} 23...Rb8 {[%clk 00:56:46][%emt
00:05:47]} 24.Rb1 {[%clk 00:16:56][%emt 00:16:50]} 24...Re4 {[%clk
00:50:57][%emt 00:06:20]} 25.Rdc1 {[%clk 00:17:01][%emt 00:00:25]} 25...b5 
{[%clk 00:45:06][%emt 00:06:21]} 26.f3 {[%clk 00:13:56][%emt 00:03:34]} 
26...Rxe3 {[%clk 00:43:45][%emt 00:01:51]} 27.cxb5 {[%clk 00:13:59][%emt
00:00:28]} 27...axb5 {[%clk 00:42:12][%emt 00:02:02]} 28.Rxc5 {[%clk
00:13:59][%emt 00:00:30]} 28...b4 {[%clk 00:37:48][%emt 00:04:55]} 29.Rb5 
{[%clk 00:14:15][%emt 00:00:14]} 29...Ra8 {[%clk 00:38:00][%emt 00:00:17]} 
30.R5xb4 {[%clk 00:14:05][%emt 00:00:40]} 30...Kh7 {[%clk 00:37:38][%emt
00:00:52]} 31.Ra1 {[%clk 00:14:07][%emt 00:00:28]} 31...Re2 {[%clk
00:34:22][%emt 00:03:46]} 32.Kf1 {[%clk 00:10:56][%emt 00:03:41]} 32...Rd2 
{[%clk 00:34:00][%emt 00:00:53]} 33.Re4 {[%clk 00:09:58][%emt 00:01:27]} 
33...Ra5 {[%clk 00:34:06][%emt 00:00:24]} 34.Re2 {[%clk 00:10:11][%emt
00:00:17]} 34...Rd4 {[%clk 00:34:32][%emt 00:00:05]} 35.Rea2 {[%clk
00:05:33][%emt 00:05:08]} 35...f5 {[%clk 00:34:16][%emt 00:00:46]} 36.g3 {[%clk
00:05:10][%emt 00:00:52]} 36...g5 {[%clk 00:30:28][%emt 00:04:18]} 37.Kf2 
{[%clk 00:05:00][%emt 00:00:40]} 37...f4 {[%clk 00:30:27][%emt 00:00:31]} 
38.gxf4 {[%clk 00:04:59][%emt 00:00:32]} 38...Rxf4 {[%clk 00:26:49][%emt
00:04:08]} 39.Ra3 {[%clk 00:05:02][%emt 00:00:27]} 39...Rh4 {[%clk
00:27:10][%emt 00:00:08]} 40.Kg3 {[%clk 00:05:12][%emt 00:00:20]} 40...Kg6 
{[%clk 00:27:22][%emt 00:00:19]} 41.R1a2 {[%clk 00:05:19][%emt 00:00:23]} 
41...Kh5 {[%clk 00:25:07][%emt 00:02:44]} 42.Ra1 {[%clk 00:05:32][%emt
00:00:17]} 1/2-1/2

[Event "FIDE Grand Swiss 2023"]
[Site "Villa Marina, Douglas, Isle of Man"]
[Date "2023.11.04"]
[Round "10.30"]
[White "Volokitin, Andrei"]
[Black "L'ami, Erwin"]
[Result "1-0"]
[WhiteElo "2664"]
[BlackElo "2627"]
[EventDate "2023.10.25"]
[ECO "C50"]
[PlyCount "97"]
[BlackClock "00:28:51"]
[BlackFideId "1007998"]
[TimeControl "40/100 + 20/50 + 15 + 30s/move"]
[WhiteClock "00:24:36"]
[WhiteFideId "14107090"]

1.e4 {[%clk 01:40:57][%emt 00:00:02]} 1...e5 {[%clk 01:40:49][%emt 00:00:11]} 
2.Nf3 {[%clk 01:41:21][%emt 00:00:06]} 2...Nc6 {[%clk 01:41:09][%emt 00:00:08]} 
3.Bc4 {[%clk 01:41:45][%emt 00:00:07]} 3...Bc5 {[%clk 01:40:57][%emt 00:00:42]} 
4.O-O {[%clk 01:41:08][%emt 00:01:08]} 4...Nf6 {[%clk 01:40:45][%emt 00:00:41]} 
5.d3 {[%clk 01:41:31][%emt 00:00:08]} 5...h6 {[%clk 01:40:07][%emt 00:01:08]} 
6.c3 {[%clk 01:41:35][%emt 00:00:26]} 6...d6 {[%clk 01:40:29][%emt 00:00:08]} 
7.Re1 {[%clk 01:41:37][%emt 00:00:27]} 7...O-O {[%clk 01:40:31][%emt 00:00:28]} 
8.h3 {[%clk 01:41:04][%emt 00:01:03]} 8...a6 {[%clk 01:40:18][%emt 00:00:44]} 
9.a4 {[%clk 01:41:21][%emt 00:00:13]} 9...Ba7 {[%clk 01:38:12][%emt 00:02:37]} 
10.Nbd2 {[%clk 01:41:19][%emt 00:00:31]} 10...Re8 {[%clk 01:38:00][%emt
00:00:42]} 11.b4 {[%clk 01:39:44][%emt 00:02:06]} 11...Be6 {[%clk 01:36:32][%emt
00:01:57]} 12.Bxe6 {[%clk 01:39:06][%emt 00:01:08]} 12...Rxe6 {[%clk
01:36:52][%emt 00:00:09]} 13.Qc2 {[%clk 01:29:57][%emt 00:09:40]} 13...Ne7 
{[%clk 01:27:07][%emt 00:10:14]} 14.d4 {[%clk 01:18:15][%emt 00:12:13]} 
14...Ng6 {[%clk 01:25:26][%emt 00:02:11]} 15.d5 {[%clk 00:56:11][%emt 00:22:35]} 
15...Re8 {[%clk 01:23:49][%emt 00:02:05]} 16.c4 {[%clk 00:54:27][%emt 00:02:15]} 
16...a5 {[%clk 01:01:44][%emt 00:22:35]} 17.bxa5 {[%clk 00:53:58][%emt
00:00:59]} 17...Nd7 {[%clk 01:00:15][%emt 00:01:59]} 18.Nb3 {[%clk
00:43:30][%emt 00:10:59]} 18...Nc5 {[%clk 00:34:45][%emt 00:25:59]} 19.Be3 
{[%clk 00:36:16][%emt 00:07:44]} 19...Nxb3 {[%clk 00:30:38][%emt 00:04:38]} 
20.Qxb3 {[%clk 00:36:44][%emt 00:00:02]} 20...Bxe3 {[%clk 00:29:54][%emt
00:01:13]} 21.Rxe3 {[%clk 00:37:05][%emt 00:00:10]} 21...Nf8 {[%clk
00:30:00][%emt 00:00:24]} 22.Qxb7 {[%clk 00:16:44][%emt 00:20:52]} 22...Rb8 
{[%clk 00:23:41][%emt 00:06:48]} 23.Qc6 {[%clk 00:14:15][%emt 00:02:59]} 
23...Nd7 {[%clk 00:23:49][%emt 00:00:22]} 24.Nd2 {[%clk 00:11:57][%emt
00:02:48]} 24...Nc5 {[%clk 00:21:45][%emt 00:02:33]} 25.Raa3 {[%clk
00:11:41][%emt 00:00:47]} 25...Qc8 {[%clk 00:20:32][%emt 00:01:43]} 26.Reb3 
{[%clk 00:01:54][%emt 00:10:17]} 26...Nxb3 {[%clk 00:09:28][%emt 00:11:34]} 
27.Rxb3 {[%clk 00:02:22][%emt 00:00:03]} 27...Rf8 {[%clk 00:08:03][%emt
00:01:54]} 28.a6 {[%clk 00:01:48][%emt 00:01:04]} 28...Rxb3 {[%clk 00:07:47]} ( 
28...Rb6 {[%emt 00:00:46]} 29.Rb4 Rxb4 {[%clk 00:07:47]} 30.Nb3 {[%clk 00:02:17]
[%emt 00:00:02]} ) 29.Nxb3 {[%clk 00:02:17][%emt 00:00:48]} 29...f5 {[%clk
00:07:05][%emt 00:01:12]} 30.a7 {[%clk 00:02:07][%emt 00:00:40]} 30...fxe4 
{[%clk 00:06:23][%emt 00:01:11]} 31.Nd2 {[%clk 00:02:09][%emt 00:00:28]} 
31...Qa8 {[%clk 00:01:41][%emt 00:05:12]} 32.Qxc7 {[%clk 00:02:23] [%emt
00:00:16]} 32...Rf7 {[%clk 00:01:39] [%emt 00:00:32]} 33.Qb8+ {[%clk 00:02:36]
[%emt 00:00:17]} 33...Rf8 {[%clk 00:02:06] [%emt 00:00:04]} 34.Qc7 {[%clk
00:02:23][%emt 00:00:16]} 34...Rf7 {[%clk 00:01:39][%emt 00:00:32]} 35.Qb8+ 
{[%clk 00:02:36][%emt 00:00:17]} 35...Rf8 {[%clk 00:02:06][%emt 00:00:04]} 
36.Qxa8 {[%clk 00:01:49][%emt 00:00:26]} 36...Rxa8 {[%clk 00:03:19][%emt
00:00:03]} 37.Nxe4 {[%clk 00:02:16][%emt 00:00:03]} 37...Rxa7 {[%clk
00:03:21][%emt 00:00:28]} 38.Nxd6 {[%clk 00:02:43][%emt 00:00:03]} 38...Rc7 
{[%clk 00:01:35][%emt 00:02:16]} 39.a5 {[%clk 00:02:31][%emt 00:00:42]} 
39...Kf8 {[%clk 00:01:57][%emt 00:00:07]} 40.a6 {[%clk 00:02:53][%emt 00:00:08]} 
40...Ra7 {[%clk 00:01:14][%emt 00:01:13]} 41.c5 {[%clk 00:43:15][%emt 00:10:08]} 
41...Rxa6 {[%clk 00:50:08][%emt 00:01:36]} 42.c6 {[%clk 00:41:22][%emt
00:02:23]} 42...Ra1+ {[%clk 00:40:54][%emt 00:09:44]} 43.Kh2 {[%clk
00:41:50][%emt 00:00:01]} 43...Rc1 {[%clk 00:41:07][%emt 00:00:17]} 44.Kg3 
{[%clk 00:26:03][%emt 00:16:18]} 44...Rc3+ {[%clk 00:37:54][%emt 00:03:43]} 
45.Kg4 {[%clk 00:24:22][%emt 00:02:10]} 45...g6 {[%clk 00:37:32][%emt 00:00:52]} 
46.Nb5 {[%clk 00:24:00][%emt 00:00:53]} 46...Rc2 {[%clk 00:29:15][%emt
00:08:47]} 47.c7 {[%clk 00:23:58][%emt 00:00:33]} 47...Ke7 {[%clk 00:29:33][%emt
00:00:10]} 48.d6+ {[%clk 00:24:14][%emt 00:00:15]} 48...Kd7 {[%clk
00:29:19][%emt 00:00:44]} 49.Na7 {[%clk 00:24:36][%emt 00:00:08]} 1-0

[Event "FIDE Grand Swiss 2023"]
[Site "Villa Marina, Douglas, Isle of Man"]
[Date "2023.11.04"]
[Round "10.31"]
[White "Jumabayev, Rinat"]
[Black "Pichot, Alan"]
[Result "1/2-1/2"]
[WhiteElo "2585"]
[BlackElo "2650"]
[EventDate "2023.10.25"]
[ECO "C54"]
[PlyCount "90"]
[BlackClock "00:31:34"]
[BlackFideId "110973"]
[TimeControl "40/100 + 20/50 + 15 + 30s/move"]
[WhiteClock "00:26:50"]
[WhiteFideId "13702661"]

1.e4 {[%clk 01:40:59]} 1...e5 {[%clk 01:40:02][%emt 00:00:58]} 2.Nf3 {[%clk
01:41:22][%emt 00:00:07]} 2...Nc6 {[%clk 01:40:26][%emt 00:00:06]} 3.Bc4 {[%clk
01:41:48][%emt 00:00:05]} 3...Bc5 {[%clk 01:40:07][%emt 00:00:49]} 4.d3 {[%clk
01:41:58][%emt 00:00:21]} 4...Nf6 {[%clk 01:40:00][%emt 00:00:35]} 5.c3 {[%clk
01:42:12][%emt 00:00:16]} 5...d6 {[%clk 01:39:37][%emt 00:00:53]} 6.Bg5 {[%clk
01:41:49][%emt 00:00:53]} 6...h6 {[%clk 01:39:16][%emt 00:00:52]} 7.Bh4 {[%clk
01:42:12][%emt 00:00:06]} 7...a6 {[%clk 01:33:29][%emt 00:06:17]} 8.a4 {[%clk
01:42:04][%emt 00:00:38]} 8...Ba7 {[%clk 01:32:07][%emt 00:01:52]} 9.Nbd2 
{[%clk 01:37:46][%emt 00:04:48]} 9...Qe7 {[%clk 01:26:05][%emt 00:06:32]} 10.b4 
{[%clk 01:36:44][%emt 00:01:33]} 10...Be6 {[%clk 01:20:13][%emt 00:06:21]} 
11.O-O {[%clk 01:24:00][%emt 00:13:14]} 11...g5 {[%clk 01:05:12][%emt 00:15:31]} 
12.Bg3 {[%clk 01:23:22][%emt 00:01:08]} 12...O-O {[%clk 01:05:17][%emt
00:00:24]} 13.Re1 {[%clk 01:19:45][%emt 00:04:08]} 13...Bxc4 {[%clk
00:59:40][%emt 00:06:07]} 14.Nxc4 {[%clk 01:16:32][%emt 00:03:43]} 14...Qe6 
{[%clk 00:59:53][%emt 00:00:17]} 15.Ne3 {[%clk 01:13:07][%emt 00:03:55]} 
15...Ne7 {[%clk 00:50:10][%emt 00:10:13]} 16.Qc2 {[%clk 00:54:46][%emt
00:18:51]} 16...Bxe3 {[%clk 00:44:35][%emt 00:06:05]} 17.Rxe3 {[%clk
00:53:05][%emt 00:02:12]} 17...Nh5 {[%clk 00:36:27][%emt 00:08:38]} 18.d4 
{[%clk 00:52:09][%emt 00:01:26]} 18...f6 {[%clk 00:35:48][%emt 00:01:08]} 
19.Rd1 {[%clk 00:48:30][%emt 00:04:09]} 19...Ng6 {[%clk 00:32:24][%emt
00:03:54]} 20.c4 {[%clk 00:43:08][%emt 00:05:53]} 20...Ng7 {[%clk 00:32:14][%emt
00:00:40]} 21.h3 {[%clk 00:31:45][%emt 00:11:53]} 21...h5 {[%clk 00:31:11][%emt
00:01:32]} 22.c5 {[%clk 00:27:05][%emt 00:05:11]} 22...h4 {[%clk 00:23:39][%emt
00:08:02]} 23.Bh2 {[%clk 00:27:17][%emt 00:00:18]} 23...g4 {[%clk 00:23:05][%emt
00:01:03]} 24.d5 {[%clk 00:21:39][%emt 00:06:09]} 24...Qd7 {[%clk 00:21:13][%emt
00:02:21]} 25.Nd2 {[%clk 00:18:56][%emt 00:03:13]} 25...Rf7 {[%clk
00:12:39][%emt 00:09:05]} 26.hxg4 {[%clk 00:15:02][%emt 00:04:24]} 26...Qxg4 
{[%clk 00:12:58][%emt 00:00:10]} 27.Nc4 {[%clk 00:15:16][%emt 00:00:17]} 
27...Nh5 {[%clk 00:09:25][%emt 00:04:03]} 28.Rf3 {[%clk 00:10:32][%emt
00:05:14]} 28...Ngf4 {[%clk 00:08:58][%emt 00:00:57]} 29.Ne3 {[%clk
00:10:51][%emt 00:00:10]} 29...Qg6 {[%clk 00:08:16][%emt 00:01:12]} 30.Kh1 
{[%clk 00:06:28][%emt 00:04:53]} 30...Rh7 {[%clk 00:08:04][%emt 00:00:42]} 
31.g3 {[%clk 00:04:57][%emt 00:02:02]} 31...hxg3 {[%clk 00:07:58][%emt
00:00:36]} 32.fxg3 {[%clk 00:05:26][%emt 00:00:01]} 32...Nh3 {[%clk
00:08:13][%emt 00:00:14]} 33.Nf5 {[%clk 00:05:16][%emt 00:00:41]} 33...Qg4 
{[%clk 00:05:42][%emt 00:03:01]} 34.Rdf1 {[%clk 00:04:58][%emt 00:00:48]} 
34...Ng5 {[%clk 00:05:06][%emt 00:01:05]} 35.Re3 {[%clk 00:05:20][%emt
00:00:08]} 35...Kh8 {[%clk 00:02:57][%emt 00:02:40]} 36.Qe2 {[%clk
00:01:03][%emt 00:04:47]} 36...Qxe2 {[%clk 00:03:14][%emt 00:00:13]} 37.Rxe2 
{[%clk 00:01:28][%emt 00:00:05]} 37...a5 {[%clk 00:03:35][%emt 00:00:09]} 
38.cxd6 {[%clk 00:01:22][%emt 00:00:36]} 38...axb4 {[%clk 00:02:54][%emt
00:01:12]} 39.Kg2 {[%clk 00:01:14][%emt 00:00:37]} 39...cxd6 {[%clk
00:02:35][%emt 00:00:49]} 40.Nxd6 {[%clk 00:01:11][%emt 00:00:33]} 40...Rxa4 
{[%clk 00:00:46][%emt 00:02:19]} 41.g4 {[%clk 00:44:36][%emt 00:07:05]} 
41...Ra6 {[%clk 00:45:55][%emt 00:05:20]} 42.Nc4 {[%clk 00:36:35][%emt
00:08:32]} 42...Nf4+ {[%clk 00:44:06][%emt 00:02:19]} 43.Bxf4 {[%clk
00:37:01][%emt 00:00:04]} 43...exf4 {[%clk 00:44:31][%emt 00:00:05]} 44.Rxf4 
{[%clk 00:37:23][%emt 00:00:07]} 44...b3 {[%clk 00:42:46][%emt 00:02:16]} 45.e5 
{[%clk 00:33:10][%emt 00:04:43]} 45...Ra2 {[%clk 00:31:34][%emt 00:11:42]} 1/2-1/2

[Event "FIDE Grand Swiss 2023"]
[Site "Villa Marina, Douglas, Isle of Man"]
[Date "2023.11.04"]
[Round "10.32"]
[White "Tari, Aryan"]
[Black "Ponomariov, Ruslan"]
[Result "1/2-1/2"]
[WhiteElo "2619"]
[BlackElo "2641"]
[EventDate "2023.10.25"]
[ECO "C58"]
[PlyCount "96"]
[BlackFideId "14103320"]
[TimeControl "40/100 + 20/50 + 15 + 30s/move"]
[WhiteFideId "1510045"]

1.e4 {[%clk 01:40:50][%emt 00:00:07]} 1...e5 {[%clk 01:40:53][%emt 00:00:09]} 
2.Nf3 {[%clk 01:41:12][%emt 00:00:08]} 2...Nc6 {[%clk 01:41:09][%emt 00:00:15]} 
3.Bc4 {[%clk 01:41:14][%emt 00:00:28]} 3...Nf6 {[%clk 01:41:18][%emt 00:00:19]} 
4.Ng5 {[%clk 01:41:39][%emt 00:00:06]} 4...d5 {[%clk 01:41:26][%emt 00:00:22]} 
5.exd5 {[%clk 01:42:05][%emt 00:00:05]} 5...Na5 {[%clk 01:41:48][%emt 00:00:08]} 
6.Bb5+ {[%clk 01:42:30][%emt 00:00:05]} 6...c6 {[%clk 01:42:01][%emt 00:00:16]} 
7.dxc6 {[%clk 01:42:55][%emt 00:00:06]} 7...bxc6 {[%clk 01:42:19][%emt
00:00:12]} 8.Bd3 {[%clk 01:43:08][%emt 00:00:17]} 8...Nd5 {[%clk 01:40:32][%emt
00:02:17]} 9.h4 {[%clk 01:43:21][%emt 00:00:16]} 9...g6 {[%clk 01:24:53][%emt
00:16:08]} 10.Nc3 {[%clk 01:42:54][%emt 00:00:59]} 10...h6 {[%clk 01:14:10][%emt
00:11:13]} 11.Nxd5 {[%clk 01:39:33][%emt 00:03:51]} 11...cxd5 {[%clk
01:11:31][%emt 00:03:08]} 12.Bb5+ {[%clk 01:39:47][%emt 00:00:17]} 12...Bd7 
{[%clk 01:11:46][%emt 00:00:15]} 13.Bxd7+ {[%clk 01:39:35][%emt 00:00:42]} 
13...Qxd7 {[%clk 01:12:11][%emt 00:00:05]} 14.Nf3 {[%clk 01:39:56][%emt
00:00:09]} 14...Bg7 {[%clk 01:10:55][%emt 00:01:45]} 15.d4 {[%clk 01:35:47][%emt
00:04:39]} 15...exd4 {[%clk 01:10:45][%emt 00:00:40]} 16.O-O {[%clk
01:24:22][%emt 00:11:56]} 16...O-O {[%clk 01:10:32][%emt 00:00:43]} 17.Nxd4 
{[%clk 01:18:27][%emt 00:06:25]} 17...Rfe8 {[%clk 01:09:56][%emt 00:01:05]} 
18.c3 {[%clk 01:14:07][%emt 00:04:50]} 18...Nc4 {[%clk 01:08:22][%emt 00:02:04]} 
19.Qd3 {[%clk 00:55:48][%emt 00:18:49]} 19...Qg4 {[%clk 00:53:28][%emt
00:15:23]} 20.Nf3 {[%clk 00:50:19][%emt 00:06:01]} 20...Rad8 {[%clk
00:51:36][%emt 00:02:22]} 21.b3 {[%clk 00:48:09][%emt 00:02:40]} 21...Ne5 
{[%clk 00:45:25][%emt 00:06:40]} 22.Nxe5 {[%clk 00:47:14][%emt 00:01:26]} 
22...Rxe5 {[%clk 00:40:06][%emt 00:05:49]} 23.g3 {[%clk 00:37:02][%emt
00:10:41]} 23...Qe2 {[%clk 00:30:14][%emt 00:10:22]} 24.Qxe2 {[%clk
00:25:25][%emt 00:12:08]} 24...Rxe2 {[%clk 00:29:58][%emt 00:00:46]} 25.Be3 
{[%clk 00:25:52][%emt 00:00:03]} 25...Bxc3 {[%clk 00:28:32][%emt 00:01:55]} 
26.Rad1 {[%clk 00:26:15][%emt 00:00:07]} 26...d4 {[%clk 00:23:05][%emt
00:05:57]} 27.Rd3 {[%clk 00:26:26][%emt 00:00:20]} 27...Rxa2 {[%clk
00:20:41][%emt 00:02:53]} 28.Rfd1 {[%clk 00:25:51][%emt 00:01:06]} 28...Rb8 
{[%clk 00:20:54][%emt 00:00:17]} 29.Bxd4 {[%clk 00:24:05][%emt 00:02:16]} 
29...Bxd4 {[%clk 00:21:20][%emt 00:00:04]} 30.Rxd4 {[%clk 00:24:31][%emt
00:00:04]} 30...Rxb3 {[%clk 00:21:44][%emt 00:00:06]} 31.Rf4 {[%clk
00:23:38][%emt 00:01:23]} 31...Rb7 {[%clk 00:21:13][%emt 00:01:01]} 32.Rd6 
{[%clk 00:22:55][%emt 00:01:13]} 32...h5 {[%clk 00:19:27][%emt 00:02:15]} 
33.Kg2 {[%clk 00:21:40][%emt 00:01:45]} 33...a6 {[%clk 00:16:20][%emt 00:03:37]} 
34.g4 {[%clk 00:09:11][%emt 00:13:00]} 34...hxg4 {[%clk 00:16:11][%emt
00:00:38]} 35.Rxg4 {[%clk 00:09:40][%emt 00:00:02]} 35...Kf8 {[%clk
00:15:17][%emt 00:01:23]} 36.Rd8+ {[%clk 00:10:06][%emt 00:00:05]} 36...Ke7 
{[%clk 00:15:05][%emt 00:00:41]} 37.Ra8 {[%clk 00:10:28][%emt 00:00:09]} 
37...Kd6 {[%clk 00:14:05][%emt 00:01:29]} 38.Rf4 {[%clk 00:09:09][%emt
00:01:49]} 38...Ke5 {[%clk 00:11:13][%emt 00:03:22]} 39.Rf3 {[%clk
00:08:54][%emt 00:00:46]} 39...a5 {[%clk 00:10:59][%emt 00:00:43]} 40.Re8+ 
{[%clk 00:08:36][%emt 00:00:48]} 40...Kd5 {[%clk 00:11:03][%emt 00:00:27]} 
41.Rf8 {[%clk 00:46:39][%emt 00:12:27]} 41...Ra4 {[%clk 00:54:49][%emt
00:06:44]} 42.R3xf7 {[%clk 00:39:04][%emt 00:08:05]} 42...Rxf7 {[%clk
00:54:05][%emt 00:01:13]} 43.Rxf7 {[%clk 00:39:21][%emt 00:00:13]} 43...Rxh4 
{[%clk 00:54:21][%emt 00:00:14]} 44.Rg7 {[%clk 00:39:31][%emt 00:00:21]} 
44...Rg4+ {[%clk 00:54:03][%emt 00:00:48]} 45.Kh3 {[%clk 00:39:40][%emt
00:00:20]} 45...Rg1 {[%clk 00:51:52][%emt 00:02:41]} 46.Kh2 {[%clk
00:38:53][%emt 00:01:18]} 46...Rg5 {[%clk 00:51:07][%emt 00:01:14]} 47.f4 
{[%clk 00:39:17][%emt 00:00:07]} 47...Rg4 {[%clk 00:50:37][%emt 00:00:59]} 
48.Ra7 {[%clk 00:39:41][%emt 00:00:07]} 48...Rxf4 {[%clk 00:50:30][%emt
00:00:05]} 1/2-1/2

[Event "FIDE Grand Swiss 2023"]
[Site "Villa Marina, Douglas, Isle of Man"]
[Date "2023.11.04"]
[Round "10.33"]
[White "Sadhwani, Raunak"]
[Black "Suleymanli, Aydin"]
[Result "1/2-1/2"]
[WhiteElo "2641"]
[BlackElo "2588"]
[EventDate "2023.10.25"]
[ECO "C77"]
[PlyCount "69"]
[BlackFideId "13413937"]
[TimeControl "40/100 + 20/50 + 15 + 30s/move"]
[WhiteFideId "35093487"]

1.e4 {[%clk 01:40:58][%emt 00:00:02]} 1...e5 {[%clk 01:40:55][%emt 00:00:06]} 
2.Nf3 {[%clk 01:41:24][%emt 00:00:04]} 2...Nc6 {[%clk 01:41:20][%emt 00:00:05]} 
3.Bb5 {[%clk 01:41:51][%emt 00:00:02]} 3...a6 {[%clk 01:41:45][%emt 00:00:06]} 
4.Ba4 {[%clk 01:42:19][%emt 00:00:02]} 4...Nf6 {[%clk 01:42:10][%emt 00:00:04]} 
5.d3 {[%clk 01:42:45][%emt 00:00:04]} 5...b5 {[%clk 01:42:17][%emt 00:00:23]} 
6.Bb3 {[%clk 01:43:10][%emt 00:00:06]} 6...Bc5 {[%clk 01:42:43][%emt 00:00:03]} 
7.c3 {[%clk 01:43:19][%emt 00:00:21]} 7...d6 {[%clk 01:41:02][%emt 00:02:11]} 
8.O-O {[%clk 01:43:38][%emt 00:00:11]} 8...h6 {[%clk 01:34:38][%emt 00:06:54]} 
9.Re1 {[%clk 01:38:51][%emt 00:05:17]} 9...O-O {[%clk 01:34:05][%emt 00:01:04]} 
10.a4 {[%clk 01:34:00][%emt 00:05:20]} 10...Bb7 {[%clk 01:25:49][%emt 00:08:46]} 
11.Nbd2 {[%clk 01:30:06][%emt 00:04:24]} 11...Ne7 {[%clk 01:18:01][%emt
00:08:18]} 12.Nf1 {[%clk 01:28:19][%emt 00:02:15]} 12...Ng6 {[%clk
01:17:15][%emt 00:01:18]} 13.Ng3 {[%clk 01:27:31][%emt 00:01:18]} 13...d5 
{[%clk 01:09:55][%emt 00:07:51]} 14.d4 {[%clk 01:11:11][%emt 00:16:50]} 
14...exd4 {[%clk 01:06:11][%emt 00:04:13]} 15.e5 {[%clk 01:11:19][%emt
00:00:22]} 15...Ne4 {[%clk 01:06:27][%emt 00:00:14]} 16.cxd4 {[%clk
01:11:33][%emt 00:00:17]} 16...Bb4 {[%clk 01:06:47][%emt 00:00:10]} 17.Re2 
{[%clk 01:07:35][%emt 00:04:27]} 17...c5 {[%clk 00:59:38][%emt 00:07:40]} 
18.Bc2 {[%clk 00:54:14][%emt 00:13:50]} 18...Re8 {[%clk 00:40:41][%emt
00:19:27]} 19.Be3 {[%clk 00:46:35][%emt 00:08:09]} 19...cxd4 {[%clk
00:34:32][%emt 00:06:39]} 20.Bxd4 {[%clk 00:46:47][%emt 00:00:17]} 20...Nf4 
{[%clk 00:34:11][%emt 00:00:52]} 21.Re3 {[%clk 00:47:12][%emt 00:00:05]} 
21...Ne6 {[%clk 00:23:25][%emt 00:11:15]} 22.Nxe4 {[%clk 00:46:15][%emt
00:01:27]} 22...dxe4 {[%clk 00:23:11][%emt 00:00:45]} 23.Bxe4 {[%clk
00:46:37][%emt 00:00:07]} 23...Bxe4 {[%clk 00:22:57][%emt 00:00:45]} 24.Rxe4 
{[%clk 00:47:02][%emt 00:00:06]} 24...Qd5 {[%clk 00:22:29][%emt 00:00:57]} 
25.Qe2 {[%clk 00:46:22][%emt 00:01:09]} 25...Rac8 {[%clk 00:20:30][%emt
00:02:30]} 26.Bb6 {[%clk 00:36:32][%emt 00:10:20]} 26...Bf8 {[%clk
00:15:39][%emt 00:05:21]} 27.a5 {[%clk 00:27:16][%emt 00:09:46]} 27...Rc4 
{[%clk 00:05:30][%emt 00:10:38]} 28.Rxc4 {[%clk 00:26:36][%emt 00:01:12]} 
28...bxc4 {[%clk 00:05:59][%emt 00:00:01]} 29.Rc1 {[%clk 00:23:03][%emt
00:04:02]} 29...Rc8 {[%clk 00:05:27][%emt 00:01:02]} 30.Rd1 {[%clk
00:17:27][%emt 00:06:06]} 30...Qb5 {[%clk 00:05:35][%emt 00:00:22]} 31.Nh4 
{[%clk 00:14:03][%emt 00:03:55]} 31...g6 {[%clk 00:03:24][%emt 00:02:40]} 32.g3 
{[%clk 00:11:55][%emt 00:02:38]} 32...Bc5 {[%clk 00:03:03][%emt 00:00:51]} 
33.Rd2 {[%clk 00:08:48][%emt 00:03:37]} 33...Bxb6 {[%clk 00:02:47][%emt
00:00:46]} 34.axb6 {[%clk 00:09:17][%emt 00:00:01]} 34...Qxb6 {[%clk
00:03:00][%emt 00:00:17]} 35.Rd6 {[%clk 00:09:17]} 1/2-1/2